{"text_format":"3","workbook":"xlsx","n_sheets":4,"sheets":["Lista de compras","Detalhamento do Orçamento","Lista de tarefas pendentes","Compartilhar lista"],"not_rendered":{"charts":2,"images":2,"defined_names":13},"read":"whole","date_system":"1900"}

{"sheet":"Lista de compras","index":0,"n_rows":25,"n_cols":8,"rows_kept":25,"merged":[[2,1,2,7],[3,1,3,2]]}
[null,"Volta às aulas","planejador"]
[]
[null,"Acompanhe o progresso de suas compras em relação aos valores das categoria de orçamento inseridos no detalhamento do orçamento."]
[null,"Resumo do orçamento",null,null,{"$f":"\"Progresso das compras (\"&COUNTIFS(Lista_de_Verificação[Comprado], \">0\")&\" de \"&COUNTIFS(Lista_de_Verificação[A comprar], \">0\")&\")\"","v":"Progresso das compras (1 de 6)"}]
[null,"Orçamento",{"v":1500,"d":"R$ 1,500.00"},null,{"$f":"IFERROR(COUNTIFS(Lista_de_Verificação[A comprar],\">0\",Lista_de_Verificação[Comprado],\">0\")/TotalItensAComprar,0)","v":{"v":0.16666666666666666,"d":"17%"}}]
[null,"Total da lista de compras",{"$f":"IFERROR(SUM(TotalListaDeVerificação), \"\")","v":{"v":365,"d":"R$ 365.00"}}]
[null,"Dinheiro restante",{"$f":"IFERROR(C5-C6, \"\")","v":{"v":1135,"d":"R$ 1,135.00"}}]
[null,"Lista de compras"]
[null,"Item","Categoria","Quant.","A comprar","Custo","Comprado","Custo total"]
[null,"Matemática","Livros escolares",{"v":1,"d":"1 "},1,{"v":55,"d":"R$ 55.00"},1,{"$f":"IFERROR(Lista_de_Verificação[[#This Row],[Quant.]]*Lista_de_Verificação[[#This Row],[Custo]], \"\")","v":{"v":55,"d":"R$ 55.00"}}]
[null,"Inglês","Livros escolares",{"v":1,"d":"1 "},1,null,null,{"$f":"IFERROR(Lista_de_Verificação[[#This Row],[Quant.]]*Lista_de_Verificação[[#This Row],[Custo]], \"\")","v":0}]
[null,"Mochila","Suprimentos",{"v":1,"d":"1 "},null,{"v":30,"d":"R$ 30.00"},null,{"$f":"IFERROR(Lista_de_Verificação[[#This Row],[Quant.]]*Lista_de_Verificação[[#This Row],[Custo]], \"\")","v":{"v":30,"d":"R$ 30.00"}}]
[null,"Calculadora","Suprimentos",{"v":1,"d":"1 "},{"$nulls":3},{"$f":"IFERROR(Lista_de_Verificação[[#This Row],[Quant.]]*Lista_de_Verificação[[#This Row],[Custo]], \"\")","v":0}]
[null,"Marca-textos","Suprimentos",{"v":3,"d":"3 "},{"$nulls":3},{"$f":"IFERROR(Lista_de_Verificação[[#This Row],[Quant.]]*Lista_de_Verificação[[#This Row],[Custo]], \"\")","v":0}]
[null,"Uniforme","Roupas",{"v":2,"d":"2 "},1,{"v":100,"d":"R$ 100.00"},null,{"$f":"IFERROR(Lista_de_Verificação[[#This Row],[Quant.]]*Lista_de_Verificação[[#This Row],[Custo]], \"\")","v":{"v":200,"d":"R$ 200.00"}}]
[null,"Camisas","Roupas",{"v":4,"d":"4 "},{"$nulls":3},{"$f":"IFERROR(Lista_de_Verificação[[#This Row],[Quant.]]*Lista_de_Verificação[[#This Row],[Custo]], \"\")","v":0}]
[null,"Camisetas","Roupas",{"v":5,"d":"5 "},{"$nulls":3},{"$f":"IFERROR(Lista_de_Verificação[[#This Row],[Quant.]]*Lista_de_Verificação[[#This Row],[Custo]], \"\")","v":0}]
[null,"Shorts","Roupas",{"v":2,"d":"2 "},{"$nulls":3},{"$f":"IFERROR(Lista_de_Verificação[[#This Row],[Quant.]]*Lista_de_Verificação[[#This Row],[Custo]], \"\")","v":0}]
[null,"Tênis","Roupas",{"v":2,"d":"2 "},1,null,null,{"$f":"IFERROR(Lista_de_Verificação[[#This Row],[Quant.]]*Lista_de_Verificação[[#This Row],[Custo]], \"\")","v":0}]
[null,"Meias","Roupas",{"v":10,"d":"10 "},{"$nulls":3},{"$f":"IFERROR(Lista_de_Verificação[[#This Row],[Quant.]]*Lista_de_Verificação[[#This Row],[Custo]], \"\")","v":0}]
[null,"Jaqueta de primavera","Roupas",{"v":1,"d":"1 "},1,{"v":80,"d":"R$ 80.00"},null,{"$f":"IFERROR(Lista_de_Verificação[[#This Row],[Quant.]]*Lista_de_Verificação[[#This Row],[Custo]], \"\")","v":{"v":80,"d":"R$ 80.00"}}]
[null,"Blusas","Roupas",{"v":1,"d":"1 "},{"$nulls":3},{"$f":"IFERROR(Lista_de_Verificação[[#This Row],[Quant.]]*Lista_de_Verificação[[#This Row],[Custo]], \"\")","v":0}]
[null,"Agasalhos","Roupas",{"v":1,"d":"1 "},{"$nulls":3},{"$f":"IFERROR(Lista_de_Verificação[[#This Row],[Quant.]]*Lista_de_Verificação[[#This Row],[Custo]], \"\")","v":0}]
[null,"Roupa íntima","Roupas",{"v":10,"d":"10 "},{"$nulls":3},{"$f":"IFERROR(Lista_de_Verificação[[#This Row],[Quant.]]*Lista_de_Verificação[[#This Row],[Custo]], \"\")","v":0}]
[null,"Jaqueta de inverno","Roupas",{"v":1,"d":"1 "},1,null,null,{"$f":"IFERROR(Lista_de_Verificação[[#This Row],[Quant.]]*Lista_de_Verificação[[#This Row],[Custo]], \"\")","v":0}]

{"sheet":"Detalhamento do Orçamento","index":1,"n_rows":6,"n_cols":3,"rows_kept":6}
[null,"Detalhamento do orçamento"]
[null,"Adicione categorias e valores de orçamento para servirem de referência em sua lista de compras."]
[null,"Categoria","Custo total"]
[null,"Roupas",{"$f":"IFERROR(SUMIFS(Lista_de_Verificação[Custo total],Lista_de_Verificação[Categoria],Categoria[[#This Row],[Categoria]]), \"\")","v":{"v":280,"d":"R$ 280.00"}}]
[null,"Suprimentos",{"$f":"IFERROR(SUMIFS(Lista_de_Verificação[Custo total],Lista_de_Verificação[Categoria],Categoria[[#This Row],[Categoria]]), \"\")","v":{"v":30,"d":"R$ 30.00"}}]
[null,"Livros escolares",{"$f":"IFERROR(SUMIFS(Lista_de_Verificação[Custo total],Lista_de_Verificação[Categoria],Categoria[[#This Row],[Categoria]]), \"\")","v":{"v":55,"d":"R$ 55.00"}}]

{"sheet":"Lista de tarefas pendentes","index":2,"n_rows":22,"n_cols":3,"rows_kept":22}
[null,"Lista de tarefas pendentes"]
[null,"Controle todas as atividades que você precisa concluir antes que comecem as aulas."]
[null,"Concluído","Tarefa"]
[null,"x","Preencher Todos os Formulários de Matrícula"]
[null,null,"Marcar os exames físico e oftalmológico escolares se necessário"]
[null,null,"Verificar todas as vacinas necessárias"]
[null,null,"Pegar uma lista com instruções de dosagem para todos os medicamentos exigidos pelo médico"]
[null,null,"Rever as normas de vestimenta da escola"]
[null,null,"Obter uma lista de materiais escolares"]
[null,null,"Conhecer o professor"]
[null,null,"Determinar o método de comunicação preferido do professor (telefone, email, carta)"]
[null,null,"Visitar a escola com seu filho"]
[null,null,"Ajudar seu filho a memorizar o endereço de casa e os telefones residencial e comercial"]
[null,null,"Organizar o transporte, escolher um ponto de encontro seguro e praticar o trajeto"]
[null,null,"Se for a pé, praticar algumas vezes com seu filho o caminho de ida e volta da escola"]
[null,null,"Caso vá de carona, apresentar seu filho a todas as pessoas que darão carona"]
[null,null,"Se for de ônibus, determinar os horários e os pontos de ônibus"]
[null,null,"Escolher creche ou babá para depois da escola"]
[null,null,"Planejar cardápios de café-da-manhã, almoço e lanches, para o horário escolar e depois"]
[null,null,"Determinar horário e local para fazer a tarefa de casa"]
[null,null,"Estabelecer uma rotina para a hora de dormir pelo menos duas semanas antes do início das aulas"]
[null,null,"Preparar um calendário com todos os eventos e atividades escolares"]

{"sheet":"Compartilhar lista","index":3,"n_rows":4,"n_cols":5,"rows_kept":4}
[null,"Compartilhar lista",null,null,"Compartilhe essa lista com outras pessoas para que elas possam contribuir. Selecione Compartilhar no canto superior direito ou pressione ALT e pressione \"Z\" seguido por \"S\". Salve o arquivo no OneDrive e envie o link para seus amigos."]
[null,"Nome","Email","Compartilhado?"]
[null,"Nikola Janu","nikola@example.com","Sim"]
[null,"Robert Anic","robert@example.com","Não"]